bitfinex/quotes_BTCUSD_20240712
["timestamp","ask_amount","ask_price","bid_price","bid_amount"]
[1720743104976,0.82740267,57323.0,57322.0,0.0097053]
[1720743105399,0.82740267,57323.0,57322.0,0.0067053]
[1720743105609,1.02240267,57323.0,57322.0,0.0097053]
[1720743105812,0.818368,57321.0,57312.0,0.08511435]
[1720743106014,0.174478,57314.0,57312.0,0.08511435]
[1720743106237,0.377678,57314.0,57312.0,0.08511435]
[1720743106463,0.7166687,57313.0,57312.0,0.08511435]
[1720743107784,1.06556149,57313.0,57312.0,0.08511435]
[1720743107983,0.71660149,57313.0,57312.0,0.08511435]
[1720743108202,0.71660149,57313.0,57306.0,0.09421135]
[1720743108430,0.1,57312.0,57306.0,0.09421135]
[1720743108652,0.3677167,57311.0,57306.0,0.09421135]
[1720743108828,0.17249,57310.0,57306.0,0.09421135]
[1720743109054,0.174493,57309.0,57306.0,0.09421135]
[1720743109227,0.377693,57309.0,57306.0,0.09421135]
[1720743109436,0.972492,57307.0,57306.0,0.009097]
[1720743109638,1.4917177,57307.0,57306.0,0.009097]
[1720743109839,1.62553817,57307.0,57306.0,1e-08]
[1720743110282,1.6147177,57307.0,57306.0,1e-08]
[1720743111149,1.2657207,57307.0,57306.0,1e-08]
[1720743112143,0.1,57306.0,57298.0,0.08511435]
[1720743112356,0.377723,57299.0,57298.0,0.08511435]
[1720743112761,0.2032,57299.0,57298.0,0.08511435]
[1720743114016,0.377723,57299.0,57298.0,0.08511435]
[1720743114252,0.377723,57299.0,57298.0,0.09911435]
[1720743114253,0.5719517,57299.0,57298.0,0.09911435]
[1720743114448,0.3974287,57299.0,57298.0,0.09911435]
[1720743115902,0.3964287,57299.0,57298.0,0.08511435]
[1720743116101,0.3964287,57299.0,57298.0,0.08711435]
[1720743116514,0.2032,57303.0,57298.0,0.08511435]
[1720743116757,0.2032,57303.0,57299.0,0.00306353]
[1720743116758,0.4677427,57302.0,57299.0,0.00306353]
[1720743117307,0.4677427,57302.0,57298.0,0.09111435]
[1720743117675,0.001,57299.0,57298.0,0.08511435]
[1720743118332,0.4677427,57302.0,57298.0,0.08511435]
[1720743119174,0.4677427,57302.0,57299.0,0.002913]
[1720743119547,0.197514,57302.0,57299.0,0.000913]
[1720743119730,0.1644134,57303.0,57300.0,0.00306353]
[1720743119931,0.28818617,57303.0,57300.0,0.00306353]
[1720743120339,0.1644134,57303.0,57301.0,0.1465]
[1720743120538,0.1644134,57303.0,57302.0,0.00306353]
[1720743121354,0.01150359,57303.0,57302.0,0.26266558]
[1720743121577,0.2032,57313.0,57307.0,0.005]
[1720743121822,0.2032,57313.0,57311.0,0.08511435]
[1720743121987,0.1,57308.0,57306.0,0.0798]
[1720743122299,0.1,57308.0,57301.0,0.00306353]
[1720743122300,0.1702287,57307.0,57301.0,0.00306353]
[1720743122437,0.2032,57302.0,57301.0,0.00306353]
[1720743122850,0.001,57303.0,57301.0,0.11606558]
[1720743123064,0.001,57303.0,57301.0,0.00306353]
[1720743123267,0.001,57303.0,57302.0,0.11606558]
[1720743123473,0.001,57303.0,57302.0,0.25856558]
[1720743123679,0.001,57303.0,57302.0,0.25550205]
[1720743123882,0.00965324,57307.0,57302.0,0.11300205]
[1720743124093,0.00965324,57307.0,57306.0,0.3381164]
[1720743124906,0.00965324,57307.0,57306.0,0.3391164]
[1720743125536,0.00965324,57307.0,57306.0,0.5683451]
[1720743125743,0.2032,57324.0,57319.0,0.1391]
[1720743125967,0.2032,57324.0,57323.0,0.09011435]
[1720743126171,0.01157236,57332.0,57324.0,0.0826]
[1720743126372,0.2032,57335.0,57330.0,0.08511435]
[1720743126572,0.11384988,57335.0,57331.0,0.00306353]
[1720743127320,0.007,57332.0,57331.0,0.00306353]
[1720743127673,0.11384988,57335.0,57331.0,0.08536353]
[1720743128760,0.007,57332.0,57331.0,0.08036353]
[1720743129005,0.007,57332.0,57326.0,0.08206353]
[1720743129227,0.2032,57327.0,57326.0,0.00306353]
[1720743129432,0.2032,57327.0,57323.0,0.08817788]
[1720743129647,0.1,57329.0,57323.0,0.08817788]
[1720743129850,0.218,57331.0,57323.0,0.08817788]
[1720743129851,0.2032,57324.0,57323.0,0.00306353]
[1720743130051,0.3262,57324.0,57317.0,0.08511435]
[1720743130181,0.2032,57324.0,57317.0,0.08511435]
[1720743130383,0.023,57323.0,57317.0,0.08511435]
[1720743130592,0.1,57319.0,57316.0,0.0756]
[1720743130955,0.2032,57317.0,57312.0,0.08511435]
[1720743131468,0.01082353,57316.0,57312.0,0.08511435]
[1720743132079,0.2032,57317.0,57312.0,0.08511435]
[1720743132299,0.01082301,57316.0,57312.0,0.08511435]
[1720743132566,0.01082363,57315.0,57312.0,0.08511435]
[1720743132694,0.2032,57317.0,57312.0,0.08511435]
[1720743132900,0.01082361,57316.0,57312.0,0.08511435]
[1720743133269,0.295,57315.0,57306.0,0.08511435]
[1720743133381,0.01082361,57314.0,57306.0,0.08511435]
[1720743133580,0.11082361,57314.0,57312.0,0.002]
[1720743133846,0.11082361,57314.0,57306.0,0.08511435]
[1720743133847,0.23702361,57313.0,57306.0,0.08511435]
[1720743133985,0.01082361,57312.0,57306.0,0.08511435]
[1720743134803,0.01082209,57311.0,57306.0,0.08511435]
[1720743135099,0.2032,57308.0,57306.0,0.08511435]
[1720743136825,0.2032,57308.0,57299.0,0.000913]
[1720743136826,0.295,57303.0,57299.0,0.000913]
[1720743136942,0.295,57303.0,57296.0,0.0159942]
[1720743136943,0.2032,57300.0,57296.0,0.0159942]
[1720743137144,0.01081448,57299.0,57297.0,0.08511435]
[1720743137791,0.2032,57300.0,57297.0,0.08511435]
[1720743138663,0.0108173,57299.0,57297.0,0.08511435]
[1720743138861,0.0108173,57299.0,57297.0,0.08611435]
[1720743139298,0.2032,57300.0,57297.0,0.08611435]
[1720743139454,0.1,57299.0,57297.0,0.08611435]
[1720743140117,0.01081805,57298.0,57297.0,0.08511435]
[1720743140319,0.1,57299.0,57297.0,0.08511435]
[1720743140931,0.01081855,57298.0,57297.0,0.08511435]
[1720743141130,0.01081855,57298.0,57297.0,0.09011435]
[1720743141631,0.01081855,57298.0,57297.0,0.006]
[1720743141864,0.218,57298.0,57297.0,0.006]
[1720743142052,0.218,57298.0,57297.0,0.001]
[1720743142053,0.13381851,57298.0,57297.0,0.001]
[1720743142253,0.123,57298.0,57297.0,0.001]
[1720743142453,0.13381811,57298.0,57297.0,0.005]
[1720743142857,0.13381811,57298.0,57297.0,0.004]
[1720743143305,0.03381811,57298.0,57297.0,0.005]
[1720743144219,0.32881811,57298.0,57297.0,0.005]
[1720743144501,0.32881811,57298.0,57297.0,0.001]
[1720743144502,0.42881811,57298.0,57297.0,0.001]
[1720743144654,0.26786121,57298.0,57297.0,0.001]
[1720743144852,0.26786121,57298.0,57296.0,0.0159942]
[1720743144853,0.26886121,57298.0,57296.0,0.0159942]
[1720743145062,0.13381736,57297.0,57296.0,0.0159942]
[1720743145693,0.29581736,57297.0,57296.0,0.0159942]
[1720743145881,0.32987143,57297.0,57296.0,0.0159942]
[1720743146770,0.87921956,57297.0,57296.0,0.0159942]
[1720743147055,0.87921956,57297.0,57291.0,0.03886694]
[1720743147056,0.295,57292.0,57291.0,0.03886694]
[1720743147184,0.63310013,57292.0,57291.0,0.03886694]
[1720743147778,0.74310013,57292.0,57291.0,0.03886694]
[1720743147953,0.74310013,57292.0,57283.0,0.00423604]
[1720743147954,0.295,57288.0,57283.0,0.00423604]
[1720743148091,0.81330013,57288.0,57283.0,0.00423604]
[1720743148301,0.80248277,57288.0,57283.0,0.00423604]
[1720743148506,0.83628826,57288.0,57283.0,0.00423604]
[1720743149315,0.295,57284.0,57283.0,0.00423604]
[1720743149554,0.73309914,57284.0,57283.0,0.00423604]
[1720743150393,1.92101218,57284.0,57283.0,0.00423604]
[1720743151589,1.93501218,57284.0,57283.0,0.00423604]
[1720743151799,0.84173964,57284.0,57283.0,0.00423604]
[1720743152002,0.3072287,57284.0,57283.0,0.00423604]
[1720743152222,0.311568,57284.0,57283.0,0.00423604]
[1720743152424,0.311568,57284.0,57283.0,0.14483604]
[1720743152425,0.114,57284.0,57283.0,0.14483604]
[1720743152624,0.023,57284.0,57283.0,0.14583604]
[1720743152908,0.014,57284.0,57283.0,0.14483604]
[1720743153410,0.023,57285.0,57283.0,0.14483604]
[1720743153644,0.023,57285.0,57284.0,0.08511435]
[1720743153812,0.023,57285.0,57283.0,0.14483604]
[1720743153813,0.009,57284.0,57283.0,0.14483604]
[1720743154022,0.109,57284.0,57283.0,0.14483604]
[1720743154558,0.1,57284.0,57283.0,0.14483604]
[1720743154732,0.1,57284.0,57283.0,0.07993604]
[1720743155089,0.279568,57284.0,57283.0,0.07993604]
[1720743155312,0.274568,57284.0,57283.0,0.00423604]
[1720743155657,0.1,57284.0,57283.0,0.00423604]
[1720743155849,0.005,57284.0,57283.0,0.00423604]
[1720743156044,0.023,57285.0,57283.0,0.00423604]
[1720743156449,0.023,57285.0,57283.0,0.00523604]
[1720743156656,0.023,57285.0,57283.0,0.00423604]
[1720743156790,0.006,57284.0,57283.0,0.00423604]
[1720743157038,0.006,57284.0,57283.0,0.07983604]
[1720743157441,0.09565283,57292.0,57283.0,0.07983604]
[1720743159240,0.2032,57288.0,57283.0,0.08383604]
[1720743159441,0.65315975,57287.0,57284.0,0.001]
[1720743159652,0.174565,57285.0,57284.0,0.001]
[1720743159851,0.174565,57285.0,57283.0,0.07983604]
[1720743159852,0.20837305,57285.0,57283.0,0.07983604]
[1720743160069,0.1,57284.0,57283.0,0.07983604]
[1720743160272,0.11080734,57284.0,57283.0,0.07983604]
[1720743160565,0.28537534,57284.0,57283.0,0.07983604]
[1720743161138,0.63451234,57284.0,57283.0,0.00423604]
[1720743161313,1.10664934,57284.0,57283.0,0.00423604]
[1720743161812,0.174577,57281.0,57280.0,0.025]
[1720743162026,0.86073861,57281.0,57280.0,0.025]
[1720743163024,0.33700661,57281.0,57280.0,0.025]
[1720743163445,0.33800661,57281.0,57280.0,0.031]
[1720743163634,0.33700661,57281.0,57280.0,0.025]
[1720743163837,0.03779871,57286.0,57280.0,0.025]
[1720743164055,0.20403637,57285.0,57280.0,0.025]
[1720743164257,0.001,57281.0,57280.0,0.025]
[1720743164860,0.023,57285.0,57280.0,0.025]
[1720743165212,0.023,57285.0,57280.0,0.029]
[1720743165734,0.023,57285.0,57280.0,0.025]
[1720743165938,0.001,57281.0,57280.0,0.03]
[1720743166350,0.197566,57285.0,57280.0,0.025]
[1720743166545,0.1,57284.0,57280.0,0.025]
[1720743166951,0.1,57284.0,57281.0,0.09011435]
[1720743167209,0.1,57284.0,57281.0,0.08511435]
[1720743167537,0.023,57285.0,57281.0,0.08511435]
[1720743167734,0.13779871,57286.0,57282.0,0.1475]
[1720743168006,0.1,57285.0,57283.0,0.00306353]
[1720743168189,0.03779871,57286.0,57283.0,0.00306353]
[1720743169084,0.03879871,57286.0,57283.0,0.00306353]
[1720743169288,0.03879871,57286.0,57283.0,0.00806353]
[1720743169469,0.03979871,57286.0,57283.0,0.00806353]
[1720743169733,0.002,57286.0,57285.0,0.26020205]
[1720743169921,0.002,57286.0,57285.0,0.43783058]
[1720743170176,0.51068611,57304.0,57298.0,0.0821]
[1720743170522,0.03403566,57303.0,57301.0,0.08511435]
[1720743170845,0.21433944,57305.0,57304.0,0.005]
[1720743170846,0.01113944,57305.0,57304.0,0.005]
[1720743171045,0.01113944,57305.0,57303.0,0.1426]
[1720743171046,0.2032,57311.0,57305.0,0.005]
[1720743171220,0.348912,57321.0,57311.0,0.0642]
[1720743171221,0.2032,57316.0,57311.0,0.0642]
[1720743171404,0.2032,57316.0,57313.0,0.005]
[1720743171405,0.03398572,57315.0,57313.0,0.005]
[1720743171615,0.03398572,57315.0,57313.0,0.081]
[1720743171830,0.2032,57316.0,57313.0,0.076]
[1720743172247,0.1,57314.0,57307.0,0.1387]
[1720743172441,0.2032,57310.0,57307.0,0.1387]
[1720743173244,0.2032,57317.0,57309.0,0.005]
[1720743173457,0.2032,57317.0,57315.0,0.08511435]
[1720743173663,0.2032,57317.0,57308.0,0.09011435]
[1720743173864,0.01081141,57316.0,57308.0,0.09011435]
[1720743174290,0.2032,57317.0,57308.0,0.08511435]
[1720743174640,0.11081132,57316.0,57308.0,0.08511435]
[1720743174841,0.18528532,57315.0,57308.0,0.08511435]
[1720743175044,0.11081132,57314.0,57308.0,0.08511435]
[1720743175340,0.1,57314.0,57308.0,0.09011435]
[1720743175545,0.1,57314.0,57308.0,0.08511435]
[1720743175877,0.2032,57311.0,57307.0,0.1387]
[1720743176881,0.377686,57311.0,57307.0,0.1387]
[1720743177105,0.174496,57308.0,57302.0,0.143]
[1720743177314,0.2032,57305.0,57302.0,0.143]
[1720743179543,0.2042,57305.0,57302.0,0.144]
[1720743179786,0.001,57305.0,57302.0,0.144]
[1720743179992,0.001,57305.0,57302.0,0.154]
[1720743180129,0.50069,57310.0,57302.0,0.143]
[1720743180367,0.3262,57310.0,57307.0,0.08511435]
[1720743180570,0.1,57310.0,57307.0,0.09011435]
[1720743180941,0.1,57310.0,57307.0,0.08511435]
[1720743181180,0.1,57314.0,57307.0,0.08511435]
[1720743181390,0.01081169,57313.0,57308.0,0.0791]
[1720743181584,0.2032,57309.0,57303.0,0.0791]
[1720743181806,0.1,57308.0,57307.0,0.09011435]
[1720743181946,0.31466977,57314.0,57308.0,0.0648]
[1720743182153,0.11146977,57314.0,57313.0,0.08511435]
[1720743182357,0.11146977,57314.0,57313.0,0.16321435]
[1720743182580,0.11246977,57314.0,57313.0,0.16321435]
[1720743182785,0.11146977,57314.0,57313.0,0.16321435]
[1720743183129,0.01146977,57314.0,57313.0,0.22581435]
[1720743183333,0.001,57314.0,57313.0,0.22581435]
[1720743183537,0.1,57318.0,57313.0,0.22581435]
[1720743184156,0.2032,57319.0,57318.0,0.005]
[1720743184157,0.01129635,57319.0,57318.0,0.005]
[1720743184356,0.2032,57326.0,57319.0,0.005]
[1720743184558,0.2032,57326.0,57321.0,0.08511435]
[1720743184783,0.174429,57330.0,57321.0,0.08511435]
[1720743184784,0.13552957,57330.0,57322.0,0.00306353]
[1720743184981,0.01081906,57329.0,57324.0,0.00306353]
[1720743185156,0.01081906,57328.0,57324.0,0.00306353]
[1720743185356,0.174432,57329.0,57324.0,0.00306353]
[1720743185555,0.03382064,57328.0,57324.0,0.00306353]
[1720743185760,0.023,57328.0,57324.0,0.00306353]
[1720743186271,0.38468538,57331.0,57329.0,0.005]
[1720743186272,0.01125668,57331.0,57329.0,0.005]
[1720743186418,0.01125668,57331.0,57330.0,0.00306353]
[1720743186625,0.1,57335.0,57330.0,0.00306353]
[1720743186848,0.2032,57336.0,57330.0,0.00306353]
[1720743186849,0.21467963,57336.0,57330.0,0.00306353]
[1720743187113,0.21467963,57336.0,57334.0,0.0631]
[1720743187114,0.01147963,57336.0,57334.0,0.0631]
[1720743187588,0.2032,57341.0,57330.0,0.00306353]
[1720743187589,0.2032,57335.0,57330.0,0.00306353]
[1720743187784,0.1,57333.0,57329.0,0.00506353]
[1720743187992,0.174428,57330.0,57329.0,0.00506353]
[1720743188165,0.174428,57330.0,57329.0,0.002]
[1720743188342,0.274428,57330.0,57329.0,0.002]
[1720743188583,0.174442,57326.0,57324.0,0.00306353]
[1720743188756,0.348868,57329.0,57324.0,0.00306353]
[1720743189080,0.348868,57329.0,57323.0,0.1406]
[1720743189081,0.377643,57325.0,57323.0,0.0775]
[1720743189886,0.17445,57323.0,57319.0,0.0826]
[1720743190128,0.17445,57323.0,57315.0,0.0615]
[1720743190129,0.174463,57319.0,57315.0,0.0615]
[1720743190261,0.2032,57319.0,57315.0,0.0615]
[1720743190461,0.377662,57319.0,57315.0,0.0615]
[1720743191066,0.2032,57319.0,57315.0,0.0615]
[1720743191269,0.174451,57323.0,57315.0,0.0665]
[1720743191476,0.1,57322.0,57319.0,0.08511435]
[1720743191854,0.1,57322.0,57321.0,0.005]
[1720743192814,0.004,57323.0,57320.0,0.1441]
[1720743192986,0.004,57323.0,57321.0,0.00306353]
[1720743193170,0.1,57330.0,57321.0,0.00806353]
[1720743193432,0.01081782,57329.0,57322.0,0.005]
[1720743193663,0.1,57330.0,57321.0,0.001]
[1720743193864,0.18524941,57329.0,57321.0,0.00406353]
[1720743194066,0.11081741,57328.0,57321.0,0.00306353]
[1720743194271,0.11081741,57328.0,57321.0,0.01]
[1720743194272,0.001,57322.0,57321.0,0.01]
[1720743194483,0.001,57323.0,57321.0,0.001]
[1720743195514,0.174453,57322.0,57321.0,0.001]
[1720743195716,0.1,57322.0,57321.0,0.001]
[1720743195944,0.1,57322.0,57320.0,0.1441]
[1720743196073,5.1,57322.0,57320.0,0.1441]
[1720743196272,5.1,57322.0,57320.0,0.0826]
[1720743197049,0.174474,57315.0,57304.0,0.005]
[1720743197180,0.174474,57315.0,57308.0,0.1441]
[1720743197389,0.18529138,57314.0,57308.0,0.1441]
[1720743197596,0.01081438,57313.0,57308.0,0.1441]
[1720743197794,0.274474,57315.0,57308.0,0.1441]
[1720743198023,0.18529182,57314.0,57308.0,0.1441]
[1720743198227,0.1745,57307.0,57304.0,0.0604]
[1720743198565,0.01081363,57306.0,57303.0,0.0803]
[1720743198703,0.174507,57304.0,57303.0,0.0803]
[1720743198901,0.18532063,57304.0,57303.0,0.0803]
[1720743199102,0.28532063,57304.0,57303.0,0.0803]
[1720743199690,0.2853226,57304.0,57303.0,0.0803]
[1720743199922,0.1108156,57304.0,57303.0,0.0803]
[1720743200800,0.1118156,57304.0,57303.0,0.0813]
[1720743201658,0.1128156,57304.0,57303.0,0.0913]
[1720743202924,0.11282434,57304.0,57303.0,0.0913]
[1720743204501,0.14688837,57304.0,57303.0,0.0913]
[1720743204863,0.32139537,57304.0,57303.0,0.0913]
[1720743205703,0.33512355,57304.0,57303.0,0.0913]
[1720743205904,0.33512355,57304.0,57293.0,0.4771]
[1720743205905,0.27031655,57304.0,57293.0,0.4771]
[1720743206104,0.14488837,57303.0,57295.0,0.08511435]
[1720743206401,0.14488837,57303.0,57296.0,0.1403]
[1720743206402,0.174517,57301.0,57296.0,0.1403]
[1720743206609,0.14489101,57300.0,57296.0,0.1403]
[1720743206761,0.010828,57299.0,57296.0,0.1403]
[1720743207546,0.174529,57297.0,57296.0,0.1403]
[1720743207766,0.185357,57297.0,57296.0,0.1403]
[1720743207956,0.174542,57293.0,57291.0,0.0757]
[1720743208358,0.174538,57294.0,57291.0,0.0757]
[1720743208755,0.174536,57295.0,57291.0,0.0757]
[1720743208955,0.349058,57297.0,57291.0,0.0757]
[1720743208956,0.174532,57296.0,57291.0,0.0757]
[1720743209168,0.3053006,57297.0,57291.0,0.0757]
[1720743209385,0.35989254,57296.0,57291.0,0.0757]
[1720743209568,0.01082854,57295.0,57291.0,0.0757]
[1720743210087,0.174535,57295.0,57291.0,0.0757]
[1720743210653,0.174538,57294.0,57291.0,0.0757]
[1720743210896,0.175538,57294.0,57291.0,0.0757]
[1720743211540,0.174542,57293.0,57291.0,0.0757]
[1720743211710,0.001,57294.0,57291.0,0.0757]
[1720743211901,0.174539,57294.0,57291.0,0.0757]
[1720743212494,0.00989372,57293.0,57291.0,0.0757]
[1720743212755,0.00989372,57293.0,57292.0,0.11300205]
[1720743213093,0.00989372,57293.0,57292.0,0.005]
[1720743213320,0.00989372,57293.0,57291.0,0.0807]
[1720743213548,0.00989372,57293.0,57291.0,0.0757]
[1720743214284,0.01089372,57293.0,57291.0,0.0757]
[1720743214887,0.00989372,57293.0,57291.0,0.0757]
[1720743215110,0.01089372,57293.0,57291.0,0.0757]
[1720743215333,0.01189372,57293.0,57291.0,0.0757]
[1720743215738,0.01189372,57293.0,57292.0,0.00281548]
[1720743216193,0.01189372,57293.0,57291.0,0.0757]
[1720743216542,0.01189372,57293.0,57291.0,0.076613]
[1720743216753,0.01189372,57293.0,57292.0,0.11300205]
[1720743216961,0.01089372,57293.0,57292.0,0.25120205]
[1720743217668,0.01189372,57293.0,57292.0,0.25120205]
[1720743219521,0.01189372,57293.0,57292.0,0.1432]
[1720743219632,0.01189372,57293.0,57292.0,0.0773]
[1720743219813,0.01189372,57293.0,57291.0,0.000913]
[1720743219814,0.02272856,57293.0,57291.0,0.000913]
[1720743220072,0.01083484,57292.0,57291.0,0.000913]
[1720743220265,0.88355484,57292.0,57291.0,0.000913]
[1720743220475,0.98355484,57292.0,57291.0,0.000913]
[1720743221501,1.00655484,57292.0,57291.0,0.000913]
[1720743221712,1.00755484,57292.0,57291.0,0.000913]
[1720743222341,1.00855484,57292.0,57291.0,0.000913]
[1720743222689,0.99772,57292.0,57291.0,0.000913]
[1720743222892,1.00855324,57292.0,57291.0,0.000913]
[1720743223524,1.04264394,57292.0,57291.0,0.000913]
[1720743225502,1.09059693,57292.0,57291.0,0.000913]
[1720743225825,1.04264394,57292.0,57291.0,0.000913]
[1720743226222,1.07966147,57292.0,57291.0,0.000913]
[1720743226437,1.09049299,57292.0,57291.0,0.000913]
[1720743226638,1.09049613,57292.0,57291.0,0.000913]
[1720743227759,0.74140813,57292.0,57291.0,0.000913]
[1720743228720,0.74140813,57292.0,57277.0,0.0206824]
[1720743228721,1.383742,57281.0,57277.0,0.0206824]
[1720743228929,0.174585,57279.0,57277.0,0.0206824]
[1720743229138,0.349164,57280.0,57278.0,0.1421]
[1720743229139,0.10306353,57280.0,57278.0,0.1421]
[1720743229368,0.05982892,57279.0,57278.0,0.22721435]
[1720743229568,0.1,57280.0,57279.0,0.11300205]
[1720743229770,0.11083021,57280.0,57279.0,0.11300205]
[1720743229953,0.01083021,57280.0,57278.0,0.23221435]
[1720743230201,0.01083021,57279.0,57278.0,0.23221435]
[1720743230407,0.0138957,57284.0,57279.0,0.005]
[1720743230604,0.01083221,57283.0,57280.0,0.079]
[1720743230802,0.001,57281.0,57280.0,0.079]
[1720743231168,0.01183221,57281.0,57280.0,0.079]
[1720743232009,0.04594814,57281.0,57280.0,0.084]
[1720743232412,0.01083221,57281.0,57280.0,0.084]
[1720743232679,0.01083221,57281.0,57280.0,0.19200205]
[1720743232876,0.001,57284.0,57283.0,0.11300205]
[1720743233074,0.001,57284.0,57283.0,0.25340205]
[1720743233075,0.01183591,57284.0,57283.0,0.25340205]
[1720743233276,0.01183591,57284.0,57283.0,0.97277375]
[1720743233435,0.00989372,57293.0,57283.0,0.48323075]
[1720743233632,0.00989372,57293.0,57291.0,0.0776]
[1720743233633,0.04495144,57292.0,57291.0,0.0776]
[1720743235298,0.21949544,57292.0,57291.0,0.0776]
[1720743235511,0.71716005,57292.0,57291.0,0.0776]
[1720743235855,0.17455,57290.0,57285.0,0.075]
[1720743235988,0.01390011,57289.0,57288.0,0.005]
[1720743236190,0.01390011,57289.0,57286.0,0.005]
[1720743236191,0.04801497,57289.0,57286.0,0.005]
[1720743236448,0.03411486,57288.0,57286.0,0.005]
[1720743236643,0.01389883,57287.0,57286.0,0.005]
[1720743236849,0.04801369,57287.0,57286.0,0.005]
[1720743237042,0.04495016,57287.0,57286.0,0.005]
[1720743237218,0.04495016,57287.0,57285.0,0.075]
[1720743237422,0.04801369,57286.0,57285.0,0.075]
[1720743237857,0.04495016,57286.0,57285.0,0.18800205]
[1720743238256,0.04495016,57286.0,57285.0,0.08]
[1720743238459,0.04495016,57286.0,57285.0,0.18800205]
[1720743239281,0.04494997,57286.0,57285.0,0.18800205]
[1720743239490,0.04594997,57286.0,57285.0,0.18800205]
[1720743239668,0.04594997,57286.0,57285.0,0.08]
[1720743240054,0.04694997,57286.0,57285.0,0.084]
[1720743240322,0.04694997,57286.0,57285.0,0.19200205]
[1720743240699,0.04594997,57286.0,57285.0,0.18800205]
[1720743241130,0.04694997,57286.0,57285.0,0.19200205]
[1720743241888,0.03611486,57286.0,57285.0,0.19200205]
[1720743242050,0.04695026,57286.0,57285.0,0.19200205]
[1720743242222,0.06083716,57286.0,57285.0,0.19200205]
[1720743242990,0.0128354,57286.0,57285.0,0.19200205]
[1720743243201,0.0108354,57286.0,57285.0,0.59349575]
[1720743243360,0.00989372,57293.0,57292.0,0.1428]
[1720743243681,0.03456335,57293.0,57292.0,0.25580205]
[1720743243885,0.05483972,57293.0,57292.0,0.25580205]
[1720743244265,0.05484086,57293.0,57292.0,0.1478]
[1720743244671,0.05484086,57293.0,57292.0,0.1448]
[1720743245054,0.25268656,57300.0,57292.0,0.1448]
[1720743245248,0.2032,57297.0,57292.0,0.1498]
[1720743245488,0.03411112,57296.0,57294.0,0.005]
[1720743245693,0.01083996,57295.0,57294.0,0.005]
[1720743245938,0.04495108,57295.0,57294.0,0.005]
[1720743246263,0.04495108,57295.0,57294.0,0.11300205]
[1720743246998,0.04495108,57295.0,57294.0,0.25350205]
[1720743247333,0.01083996,57295.0,57294.0,0.25350205]
[1720743247480,0.0108427,57301.0,57299.0,0.005]
[1720743247685,0.10425525,57306.0,57299.0,0.005]
[1720743247686,0.04139871,57300.0,57299.0,0.005]
[1720743248316,0.03055582,57300.0,57299.0,0.11300205]
[1720743248562,0.0413989,57300.0,57299.0,0.11300205]
[1720743248740,0.0413989,57300.0,57299.0,0.005]
[1720743249038,0.0413989,57300.0,57299.0,0.11300205]
[1720743249266,0.0423989,57300.0,57299.0,0.11300205]
[1720743249677,0.01184308,57300.0,57299.0,0.25740205]
[1720743250274,0.01384308,57300.0,57299.0,0.25740205]
[1720743250878,0.01184308,57300.0,57299.0,0.25740205]
[1720743251245,0.001,57300.0,57299.0,0.26140205]
[1720743251751,0.00083,57300.0,57299.0,0.26140205]
[1720743251990,0.00083,57300.0,57299.0,0.60615375]
[1720743252192,0.00183,57300.0,57299.0,0.67015375]
[1720743252845,0.00183,57300.0,57299.0,1.01919975]
[1720743253909,0.00183,57300.0,57299.0,0.95919975]
[1720743254123,0.00183,57300.0,57299.0,1.01919975]
[1720743254335,0.00183,57300.0,57299.0,1.36824575]
[1720743254545,0.00183,57300.0,57299.0,1.71729175]
[1720743254746,0.51068611,57321.0,57320.0,0.11300205]
[1720743254965,0.52153138,57321.0,57320.0,0.11300205]
[1720743255165,0.02511019,57321.0,57320.0,0.11300205]
[1720743255595,0.02511041,57321.0,57320.0,0.11300205]
[1720743255802,4.75210393,57322.0,57320.0,0.005]
[1720743256213,4.75210393,57322.0,57319.0,0.1458]
[1720743256214,4.75210393,57322.0,57319.0,0.1258]
[1720743256422,4.75210393,57322.0,57321.0,0.10800205]
[1720743256623,4.76648213,57322.0,57321.0,0.10800205]
[1720743257355,4.76748213,57322.0,57321.0,0.10800205]
[1720743257587,4.76748213,57322.0,57321.0,0.04800205]
[1720743257791,4.75310393,57322.0,57321.0,0.86359875]
[1720743258473,4.75310393,57322.0,57321.0,0.92359875]
[1720743258711,4.75310393,57322.0,57321.0,1.27251075]
[1720743258915,4.75210393,57322.0,57321.0,1.27251075]
[1720743259054,4.75210393,57322.0,57321.0,1.35291075]
[1720743259251,4.75310393,57322.0,57321.0,1.35891075]
[1720743259625,4.75310393,57322.0,57321.0,1.35291075]
[1720743259626,4.75210393,57322.0,57321.0,1.35291075]
[1720743259831,4.75310393,57322.0,57321.0,1.36291075]
[1720743260031,4.75410393,57322.0,57321.0,1.37291075]
[1720743260432,4.46800075,57322.0,57321.0,1.37291075]
[1720743260875,4.46700075,57322.0,57321.0,1.36291075]
[1720743261235,4.46800075,57322.0,57321.0,1.37691075]
[1720743261873,4.46800075,57322.0,57321.0,1.72582275]
[1720743262080,4.46700075,57322.0,57321.0,1.71582275]
[1720743262412,4.46700075,57322.0,57321.0,2.41582275]
[1720743262539,4.38370075,57322.0,57321.0,2.51582275]
[1720743262752,3.93400075,57322.0,57321.0,3.30279475]
[1720743262953,3.69240075,57322.0,57321.0,3.53230675]
[1720743263376,3.69340075,57322.0,57321.0,3.39439475]
[1720743263587,3.69240075,57322.0,57321.0,1.77042275]
[1720743263782,3.69340075,57322.0,57321.0,1.78442275]
[1720743263960,3.69240075,57322.0,57321.0,1.87342275]
[1720743264397,3.69240075,57322.0,57321.0,2.15942275]
[1720743264398,3.69140075,57322.0,57321.0,2.15942275]
[1720743264600,3.69140075,57322.0,57321.0,1.85942275]
[1720743264822,3.69240075,57322.0,57321.0,1.87342275]
[1720743265379,3.69340075,57322.0,57321.0,2.08342275]
[1720743265809,3.69240075,57322.0,57321.0,2.07342275]
[1720743266259,3.69240075,57322.0,57321.0,2.06942275]
[1720743266575,3.69240075,57322.0,57321.0,2.08342275]
[1720743266979,3.69240075,57322.0,57321.0,1.88342275]
[1720743268196,3.69240075,57322.0,57321.0,2.08342275]
[1720743268403,3.69240075,57322.0,57321.0,2.53233475]
[1720743269922,3.69240075,57322.0,57321.0,2.18342275]